{"text_format":"1","workbook":"xlsx","n_sheets":6,"sheets":["40-FUNDUSZE CELOWE","RBUZA","RBUZB1","RBUZB2","RBUZB3","RBUZB4"],"not_rendered":{"charts":0,"images":0,"macros":1,"external_links":0,"defined_names":5,"comments":0,"pivot_tables":0},"unopened":[],"bounds":{"document_bytes":16777216,"sheet_cells":100000,"rows_first":2000,"rows_last":500,"rows_between":2000,"halvings":0,"cell_chars":16384,"cell_head_chars":4096},"cells_cut":0,"cells_raw":0,"read":"whole","date_system":"1900"}

{"sheet":"40-FUNDUSZE CELOWE","index":0,"n_rows":133,"n_cols":22,"rows_kept":133,"cut":false,"hidden":false,"merged":[[59,9,59,11],[60,9,60,11],[64,0,64,2],[61,9,61,11],[62,9,62,11],[63,9,63,11],[64,9,64,11],[62,0,62,2],[63,0,63,2],[61,0,61,2],[60,0,60,2],[49,12,49,15],[39,9,39,11],[40,9,40,11],[54,9,54,11],[55,9,55,11],[50,9,50,11],[51,9,51,11],[52,9,52,11],[53,9,53,11],[32,9,32,11],[42,9,42,11],[29,9,29,11],[29,12,29,15],[30,9,30,11],[31,9,31,11],[49,3,49,6],[58,0,58,2],[59,0,59,2],[33,9,33,11],[34,9,34,11],[35,9,35,11],[36,9,36,11],[41,9,41,11],[37,9,37,11],[38,9,38,11],[43,9,43,11],[44,9,44,11],[49,9,49,11],[56,9,56,11],[57,9,57,11],[58,9,58,11],[54,0,54,2],[57,0,57,2],[49,0,49,2],[35,0,35,2],[39,0,39,2],[40,0,40,2],[55,0,55,2],[56,0,56,2],[53,0,53,2],[50,0,50,2],[51,0,51,2],[52,0,52,2],[29,0,29,2],[30,0,30,2],[33,0,33,2],[45,0,45,1],[32,0,32,2],[31,0,31,2],[44,0,44,2],[34,0,34,2],[36,0,36,2],[37,0,37,2],[38,0,38,2],[41,0,41,2],[42,0,42,2],[43,0,43,2],[10,2,10,4],[2,0,2,1],[5,0,5,1],[7,0,7,1],[29,3,29,6],[8,2,8,4],[9,2,9,4],[21,0,21,1],[14,2,14,8],[15,8,16,8],[14,0,16,1],[15,2,16,2],[15,3,16,3],[15,4,16,4],[22,0,22,1],[15,5,16,5],[15,6,16,6],[15,7,16,7],[20,0,20,1],[17,0,17,1],[18,0,18,1],[19,0,19,1]]}
[]
["Nazwa jednostki sprawozdawczej ",null,null,null,null,"Rb-UZ  ROCZNE SPRAWOZDANIE UZUPEŁNIAJĄCE O STANIE ZOBOWIĄZAŃ "]
[null,null,null,null,null,null,"WG TYTUŁÓW DŁUŻNYCH "]
[null,null,null,null,null,null,"funduszu celowego bez osobowości prawnej"]
["Adres jednostki sprawozdawczej",null,null,null,null,null,null,null,null,null,null,null,null,"Adresat:"]
[null,null,null,null,null,null,null,null,null,null,null,null,null,"Urząd Statystyczny we Wrocławiu"]
["Numer identyfikacyjny REGON",null,"liczba identyfik.jedn.",null,null,null,null,null,null,null,null,null,null,"ul. Oławska 31"]
[{"$f":"IF(ISERROR(VLOOKUP(JEDNOSTKA,U17:V138,2,FALSE)),\"\",VLOOKUP(JEDNOSTKA,U17:V138,2,FALSE))","v":""},null,"",null,null,"wg stanu na koniec",null,4,"kwartału","  roku",null,null,null,"50-950 Wrocław"]
["Nazwa województwa",null,null,null,null,null,null,"SYMBOLE"]
["Nazwa powiatu / związku",null,null,null,null,"WOJ.","POWIAT","GMINA","TYP GM.","ZWIĄZEK JST","TYP ZW.","GRUPA","CZĘŚĆ BUDŻ."]
["Nazwa gminy / związku",null,null,null,null,null,null,null,null,null,null,40]
[]
["A. Struktura walutowa tytułów dłużnych według wartości nominalnej "]
[]
["Wyszczególnienie",null,"W a l u t a"]
[null,null,"Ogółem (kol. 3+4+5+6+7)","PLN","EUR","USD","CHF","Pozostałe waluty wg średniego kursu NBP","Pozostałe waluty wg średniej arytmetycznej",null,null,null,null,null,null,null,null,null,null,"ROK","NAZWA","REGON"]
[null,null,"Ogółem (kol. 3+4+5+6+7)",null,null,null,null,null,"Pozostałe waluty wg średniej arytmetycznej",null,null,null,null,null,null,null,null,null,null,2021,"Agencja Bezpieczeństwa Wewnętrznego","015179728"]
[1,null,2,3,4,5,6,7,8,null,null,null,null,null,null,null,null,null,null,2022,"Agencja Wywiadu","015179898"]
["B. Zobowiązania ogółem (B1+B2+B3+B4)",null,{"$f":"C20+C21+C22+C23","v":0},{"$f":"D20+D21+D22+D23","v":0},0,0,0,0,0,null,null,null,null,null,null,null,null,null,null,2023,"Biuro Krajowej Rady Radiofonii i Telewizji","010182401"]
["B1. papiery wartościowe",null,{"$f":"D20+E20+F20+G20+H20","v":0},null,null,null,null,null,null,null,null,null,null,null,null,null,null,null,null,2024,"Biuro Rzecznika Praw Dziecka","016387630"]
["B2. kredyty i pożyczki",null,{"$f":"D21+E21+F21+G21+H21","v":0},null,null,null,null,null,null,null,null,null,null,null,null,null,null,null,null,2025,"Biuro Rzecznika Praw Obywatelskich","012093073"]
["B3. przyjęte depozyty",null,{"$f":"D22+E22+F22+G22+H22","v":0},null,null,null,null,null,null,null,null,null,null,null,null,null,null,null,null,2026,"Biuro Rzecznika Praw Pacjenta","017445217"]
["B4. wymagalne zobowiązania",null,{"$f":"D23+E23+F23+G23+H23","v":0},null,null,null,null,null,null,null,null,null,null,null,null,null,null,null,null,2027,"Centralne Biuro Antykorupcyjne","140610454"]
[null,null,null,null,null,null,null,null,null,null,null,null,null,null,null,null,null,null,null,null,"Dolnośląski Urząd Wojewódzki","000514377"]
["B. Struktura terminowa zobowiązań z tytułu zaciagniętych kredytów i pożyczek oraz wyemitowanych papierów wartościowych",null,null,null,null,null,null,null,null,null,null,null,null,null,null,null,null,null,null,null,"Główny Urząd Miar","010415420"]
[null,null,null,null,null,null,null,null,null,null,null,null,null,null,null,null,null,null,null,null,"Główny Urząd Statystyczny","000331501"]
["B1. papiery wartościowe wg pierwotnego terminu zapadalności - stan na koniec okresu sprawozdawczego",null,null,null,null,null,null,null,null," B2. papiery wartościowe wg pozostałego terminu zapadalności - stan na koniec okresu sprawozdawczego",null,null,null,null,null,null,null,null,null,"CZ_BU","Instytut Pamięci Narodowej","016365090"]
["      (wg wartości nominalnej)",null,null,null,null,null,null,null,null,"      (wg wartości nominalnej)",null,null,null,null,null,null,null,null,null,"01","Kancelaria Prezesa Rady Ministrów","012261725"]
[null,null,null,null,null,null,null,null,null,null,null,null,null,null,null,null,null,null,null,"02","Kancelaria Prezydenta RP","000000023"]
["papiery wartościowe",null,null,"zapadalność w latach",null,null,null,null,null,"papiery wartościowe",null,null,"zapadalność w latach",null,null,null,null,null,null,"03","Kancelaria Sejmu","001103340"]
["wierzyciele",null,null,"łącznie       (kol. 3+4+5)","( 0;1>","( 1;5>","pow. 5",null,null,"wierzyciele",null,null,"łącznie       (kol. 3+4+5)","( 0;1>","( 1;5>","pow. 5",null,null,null,"04","Kancelaria Senatu","001393800"]
[1,null,null,2,3,4,5,null,null,1,null,null,2,3,4,5,null,null,null,"05","Krajowa Rada Sądownictwa","140813648"]
["1. łącznie (w. 2+3+4+5+6+7+8+9+10+11+12+13)",null,null,{"$f":"SUM(D34:D45)","v":0},{"$f":"SUM(E34:E45)","v":0},{"$f":"SUM(F34:F45)","v":0},{"$f":"SUM(G34:G45)","v":0},null,null,"1. łącznie (w. 2+3+4+5+6+7+8+9+10+11+12+13)",null,null,{"$f":"SUM(M34:M45)","v":0},{"$f":"SUM(N34:N45)","v":0},{"$f":"SUM(O34:O45)","v":0},{"$f":"SUM(P34:P45)","v":0},null,null,null,"06","Krajowe Biuro Wyborcze","010300303"]
["2. grupa I",null,null,{"$f":"E34+F34+G34","v":0},null,null,null,null,null,"2. grupa I",null,null,{"$f":"N34+O34+P34","v":0},null,null,null,null,null,null,"07","Kujawsko-Pomorski Urząd Wojewódzki","000514236"]
["3. grupa II",null,null,{"$f":"E35+F35+G35","v":0},null,null,null,null,null,"3. grupa II",null,null,{"$f":"N35+O35+P35","v":0},null,null,null,null,null,null,"08","Lubelski Urząd Wojewódzki","000514294"]
["4. grupa III",null,null,0,null,null,null,null,null,"4. grupa III",null,null,0,null,null,null,null,null,null,"09","Lubuski Urząd Wojewódzki","210467089"]
["5.grupa IV",null,null,0,null,null,null,null,null,"5.grupa IV",null,null,0,null,null,null,null,null,null,"10","Łódzki Urząd Wojewódzki","004308002"]
["6. bank centralny",null,null,0,null,null,null,null,null,"6. bank centralny",null,null,0,null,null,null,null,null,null,"11","Małopolski Urząd Wojewódzki","000514176"]
["7. banki",null,null,0,null,null,null,null,null,"7. banki",null,null,0,null,null,null,null,null,null,"12","Mazowiecki Urząd Wojewódzki","013272620"]
["8. pozostałe krajowe instytucje finansowe",null,null,0,null,null,null,null,null,"8. pozostałe krajowe instytucje finansowe",null,null,0,null,null,null,null,null,null,"13","Ministerstwo Aktywów Państwowych","363209612"]
["9. przedsiębiorstwa niefinansowe",null,null,0,null,null,null,null,null,"9. przedsiębiorstwa niefinansowe",null,null,0,null,null,null,null,null,null,"14","Ministerstwo Edukacji i Nauki","000177939"]
["10. gospodarstwa domowe",null,null,0,null,null,null,null,null,"10. gospodarstwa domowe",null,null,0,null,null,null,null,null,null,"15","Ministerstwo Finansów","000002217"]
["11. instytucje niekomercyjne działające na rzecz gospodarstw domowych",null,null,0,null,null,null,null,null,"11. instytucje niekomercyjne działające na rzecz gospodarstw domowych",null,null,0,null,null,null,null,null,null,"16","Ministerstwo Funduszy i Polityki Regionalnej","140315583"]
["12. podmioty nalezące do strefy euro",null,null,0,null,null,null,null,null,"12. podmioty nalezące do strefy euro",null,null,0,null,null,null,null,null,null,"17","Ministerstwo Infrastruktury","363190367"]
["13. pozostałe podmioty zagraniczne",null,null,0,null,null,null,null,null,"13. pozostałe podmioty zagraniczne",null,null,0,null,null,null,null,null,null,"18","Ministerstwo Klimatu i Środowiska","001064858"]
[null,null,null,null,null,null,null,null,null,null,null,null,null,null,null,null,null,null,null,"19","Ministerstwo Kultury i Dziedzictwa Narodowego","000274068"]
["B3. kredyty i pożyczki wg pierwotnego terminu zapadalności - stan na koniec okresu sprawozdawczego",null,null,null,null,null,null,null,null,"B4. kredyty i pożyczki wg pozostałego terminu zapadalności - stan na koniec okresu sprawozdawczego",null,null,null,null,null,null,null,null,null,"20","Ministerstwo Obrony Narodowej","000665337"]
["      (wg wartości nominalnej)",null,null,null,null,null,null,null,null,"      (wg wartości nominalnej)",null,null,null,null,null,null,null,null,null,"21","Ministerstwo Rodziny i Polityki Społecznej","015725935"]
[null,null,null,null,null,null,null,null,null,null,null,null,null,null,null,null,null,null,null,"22","Ministerstwo Rolnictwa i Rozwoju Wsi","000063880"]
["kredyty i pożyczki",null,null,"zapadalność w latach",null,null,null,null,null,"kredyty i pożyczki",null,null,"zapadalność w latach",null,null,null,null,null,null,"23","Ministerstwo Rozwoju, Pracy i Technologii","369267361"]
["wierzyciele",null,null,"łącznie       (kol. 3+4+5)","( 0;1>","( 1;5>","pow. 5",null,null,"wierzyciele",null,null,"łącznie       (kol. 3+4+5)","( 0;1>","( 1;5>","pow. 5",null,null,null,"24","Ministerstwo Sportu","140217142"]
[1,null,null,2,3,4,5,null,null,1,null,null,2,3,4,5,null,null,null,"25","Ministerstwo Spraw Wewnętrznych i Administracji","012293240"]
["1. łącznie (w. 2+3+4+5+6+7+8+9+10+11+12+13)",null,null,{"$f":"SUM(D54:D65)","v":0},{"$f":"SUM(E54:E65)","v":0},{"$f":"SUM(F54:F65)","v":0},{"$f":"SUM(G54:G65)","v":0},null,null,"1. łącznie (w. 2+3+4+5+6+7+8+9+10+11+12+13)",null,null,{"$f":"SUM(M54:M65)","v":0},{"$f":"SUM(N54:N65)","v":0},{"$f":"SUM(O54:O65)","v":0},{"$f":"SUM(P54:P65)","v":0},null,null,null,"26","Ministerstwo Spraw Zagranicznych","000177916"]
["2. grupa I",null,null,{"$f":"E54+F54+G54","v":0},null,null,null,null,null,"2. grupa I",null,null,{"$f":"N54+O54+P54","v":0},null,null,null,null,null,null,"27","Ministerstwo Sprawiedliwości","000319150"]
["3. grupa II",null,null,{"$f":"E55+F55+G55","v":0},null,null,null,null,null,"3. grupa II",null,null,{"$f":"N55+O55+P55","v":0},null,null,null,null,null,null,"28","Ministerstwo Zdrowia","000287987"]
["4. grupa III",null,null,0,null,null,null,null,null,"4. grupa III",null,null,0,null,null,null,null,null,null,"29","Naczelny Sąd Administracyjny","000849310"]
["5.grupa IV",null,null,0,null,null,null,null,null,"5.grupa IV",null,null,0,null,null,null,null,null,null,"30","Najwyższa Izba Kontroli","000000052"]
["6. bank centralny",null,null,0,null,null,null,null,null,"6. bank centralny",null,null,0,null,null,null,null,null,null,"31","Opolski Urząd Wojewódzki","000514325"]
["7. banki",null,null,0,null,null,null,null,null,"7. banki",null,null,0,null,null,null,null,null,null,"32","Państwowa Agencja Atomistyki","000907473"]
["8. pozostałe krajowe instytucje finansowe",null,null,0,null,null,null,null,null,"8. pozostałe krajowe instytucje finansowe",null,null,0,null,null,null,null,null,null,"33","Państwowa Inspekcja Pracy","007021519"]
["9. przedsiębiorstwa niefinansowe",null,null,0,null,null,null,null,null,"9. przedsiębiorstwa niefinansowe",null,null,0,null,null,null,null,null,null,"34","Podkarpacki Urząd Wojewódzki w Rzeszowie","000514348"]
["10. gospodarstwa domowe",null,null,0,null,null,null,null,null,"10. gospodarstwa domowe",null,null,0,null,null,null,null,null,null,"35","Podlaski Urząd Wojewódzki","000514213"]
["11. instytucje niekomercyjne działające na rzecz gospodarstw domowych",null,null,0,null,null,null,null,null,"11. instytucje niekomercyjne działające na rzecz gospodarstw domowych",null,null,0,null,null,null,null,null,null,"36","Polski Komitet Normalizacyjny","010415408"]
["12. podmioty nalezące do strefy euro",null,null,0,null,null,null,null,null,"12. podmioty nalezące do strefy euro",null,null,0,null,null,null,null,null,null,"37","Pomorski Urząd Wojewódzki","000514242"]
["13. pozostałe podmioty zagraniczne",null,null,0,null,null,null,null,null,"13. pozostałe podmioty zagraniczne",null,null,0,null,null,null,null,null,null,"38","Prokuratoria Generalna Rzeczypospolitej Polskiej","140264957"]
[null,null,null,null,null,null,null,null,null,null,null,null,null,null,null,null,null,null,null,"39","Prokuratura Krajowa","363918998"]
[null,null,null,null,null,null,null,null,null,null,null,null,null,null,null,null,null,null,null,"40","Rządowe Centrum Legislacji","016179067"]
[null,null,null,null,null,null,null,null,null,null,null,null,null,null,null,null,null,null,null,"41","Samorządowe Kolegium Odwoławcze Biała Podlaska","030120850"]
[null,null,null,null,null,null,null,null,null,null,null,null,null,null,null,null,null,null,null,"42","Samorządowe Kolegium Odwoławcze Białystok","050322561"]
[null,null,null,null,null,null,null,null,null,null,null,null,null,null,null,null,null,null,null,"43","Samorządowe Kolegium Odwoławcze Bielsko-Biała","070477503"]
[null,null,null,null,null,null,null,null,null,null,null,null,null,null,null,null,null,null,null,"44","Samorządowe Kolegium Odwoławcze Bydgoszcz","091149553"]
[null,null,null,null,null,null,null,null,null,null,null,null,null,null,null,null,null,null,null,"45","Samorządowe Kolegium Odwoławcze Chełm","110105320"]
[". . . . . . . . . . . . . . . . . . . . . . . . . . . . .  .  .",null,null,null,". . . . . . . . . . .",null,null,". . . . . . . . . . .",null,null,". . . . . . . . . . . . . . . . .",null,null,null,null,null,null,null,null,"46","Samorządowe Kolegium Odwoławcze Ciechanów","130197157"]
["Główny księgowy * / Skarbnik",null,null,null,"telefon",null,null,"rok m-c dzień",null,null,"Kierownik jednostki (jednostki obsługującej)/ Przewodniczący Zarządu",null,null,null,null,null,null,null,null,"47","Samorządowe Kolegium Odwoławcze Częstochowa","150060075"]
["* Nie dotyczy sprawozdań zbiorczych sporządzanych przez RIO.* Nie dotyczy sprawozdań zbiorczych sporządzanych przez RIO. W przypadku braku głównego księgowego podpisuje tylko kierownik jednostki.",null,null,null,null,null,null,null,null,null,null,null,null,null,null,null,null,null,null,"48","Samorządowe Kolegium Odwoławcze Elbląg","170237517"]
[null,null,null,null,null,null,null,null,null,null,null,null,null,null,null,null,null,null,null,"49","Samorządowe Kolegium Odwoławcze Gdańsk","190482336"]
[null,null,null,null,null,null,null,null,null,null,null,null,null,null,null,null,null,null,null,"50","Samorządowe Kolegium Odwoławcze Gorzów Wielkopolski","210241304"]
[null,null,null,null,null,null,null,null,null,null,null,null,null,null,null,null,null,null,null,"51","Samorządowe Kolegium Odwoławcze Jelenia Góra","230224997"]
[null,null,null,null,null,null,null,null,null,null,null,null,null,null,null,null,null,null,null,"52","Samorządowe Kolegium Odwoławcze Kalisz","250471562"]
[null,null,null,null,null,null,null,null,null,null,null,null,null,null,null,null,null,null,null,"53","Samorządowe Kolegium Odwoławcze Katowice","272357234"]
[null,null,null,null,null,null,null,null,null,null,null,null,null,null,null,null,null,null,null,"54","Samorządowe Kolegium Odwoławcze Kielce","290540390"]
[null,null,null,null,null,null,null,null,null,null,null,null,null,null,null,null,null,null,null,"55","Samorządowe Kolegium Odwoławcze Konin","310187843"]
[null,null,null,null,null,null,null,null,null,null,null,null,null,null,null,null,null,null,null,"56","Samorządowe Kolegium Odwoławcze Koszalin","330322679"]
[null,null,null,null,null,null,null,null,null,null,null,null,null,null,null,null,null,null,null,"57","Samorządowe Kolegium Odwoławcze Kraków","350760168"]
[null,null,null,null,null,null,null,null,null,null,null,null,null,null,null,null,null,null,null,"58","Samorządowe Kolegium Odwoławcze Krosno","370233499"]
[null,null,null,null,null,null,null,null,null,null,null,null,null,null,null,null,null,null,null,"59","Samorządowe Kolegium Odwoławcze Legnica","390324772"]
[null,null,null,null,null,null,null,null,null,null,null,null,null,null,null,null,null,null,null,"60","Samorządowe Kolegium Odwoławcze Leszno","410226592"]
[null,null,null,null,null,null,null,null,null,null,null,null,null,null,null,null,null,null,null,"61","Samorządowe Kolegium Odwoławcze Lublin","430463253"]
[null,null,null,null,null,null,null,null,null,null,null,null,null,null,null,null,null,null,null,"62","Samorządowe Kolegium Odwoławcze Łomża","450100747"]
[null,null,null,null,null,null,null,null,null,null,null,null,null,null,null,null,null,null,null,"63","Samorządowe Kolegium Odwoławcze Łódź","470930730"]
[null,null,null,null,null,null,null,null,null,null,null,null,null,null,null,null,null,null,null,"64","Samorządowe Kolegium Odwoławcze Nowy Sącz","490510595"]
[null,null,null,null,null,null,null,null,null,null,null,null,null,null,null,null,null,null,null,"65","Samorządowe Kolegium Odwoławcze Olsztyn","510284847"]
[null,null,null,null,null,null,null,null,null,null,null,null,null,null,null,null,null,null,null,"66","Samorządowe Kolegium Odwoławcze Opole","530968352"]
[null,null,null,null,null,null,null,null,null,null,null,null,null,null,null,null,null,null,null,"67","Samorządowe Kolegium Odwoławcze Ostrołęka","550400044"]
[null,null,null,null,null,null,null,null,null,null,null,null,null,null,null,null,null,null,null,"68","Samorządowe Kolegium Odwoławcze Piła","570174862"]
[null,null,null,null,null,null,null,null,null,null,null,null,null,null,null,null,null,null,null,"69","Samorządowe Kolegium Odwoławcze Piotrków Trybunalski","590343540"]
[null,null,null,null,null,null,null,null,null,null,null,null,null,null,null,null,null,null,null,"70","Samorządowe Kolegium Odwoławcze Płock","610222286"]
[null,null,null,null,null,null,null,null,null,null,null,null,null,null,null,null,null,null,null,"71","Samorządowe Kolegium Odwoławcze Poznań","630283616"]
[null,null,null,null,null,null,null,null,null,null,null,null,null,null,null,null,null,null,null,"72","Samorządowe Kolegium Odwoławcze Przemyśl","650129510"]
[null,null,null,null,null,null,null,null,null,null,null,null,null,null,null,null,null,null,null,"73","Samorządowe Kolegium Odwoławcze Radom","670750021"]
[null,null,null,null,null,null,null,null,null,null,null,null,null,null,null,null,null,null,null,"74","Samorządowe Kolegium Odwoławcze Rzeszów","690310938"]
[null,null,null,null,null,null,null,null,null,null,null,null,null,null,null,null,null,null,null,"75","Samorządowe Kolegium Odwoławcze Siedlce","710315530"]
[null,null,null,null,null,null,null,null,null,null,null,null,null,null,null,null,null,null,null,"76","Samorządowe Kolegium Odwoławcze Sieradz","730188808"]
[null,null,null,null,null,null,null,null,null,null,null,null,null,null,null,null,null,null,null,"77","Samorządowe Kolegium Odwoławcze Skierniewice","750445394"]
[null,null,null,null,null,null,null,null,null,null,null,null,null,null,null,null,null,null,null,"78","Samorządowe Kolegium Odwoławcze Słupsk","770727125"]
[null,null,null,null,null,null,null,null,null,null,null,null,null,null,null,null,null,null,null,"79","Samorządowe Kolegium Odwoławcze Suwałki","790167544"]
[null,null,null,null,null,null,null,null,null,null,null,null,null,null,null,null,null,null,null,"80","Samorządowe Kolegium Odwoławcze Szczecin","810664240"]
[null,null,null,null,null,null,null,null,null,null,null,null,null,null,null,null,null,null,null,"81","Samorządowe Kolegium Odwoławcze Tarnobrzeg","830210976"]
[null,null,null,null,null,null,null,null,null,null,null,null,null,null,null,null,null,null,null,"82","Samorządowe Kolegium Odwoławcze Tarnów","850329302"]
[null,null,null,null,null,null,null,null,null,null,null,null,null,null,null,null,null,null,null,"83","Samorządowe Kolegium Odwoławcze Toruń","870273968"]
[null,null,null,null,null,null,null,null,null,null,null,null,null,null,null,null,null,null,null,"84","Samorządowe Kolegium Odwoławcze Wałbrzych","890281455"]
[null,null,null,null,null,null,null,null,null,null,null,null,null,null,null,null,null,null,null,"85","Samorządowe Kolegium Odwoławcze Warszawa","010857000"]
[null,null,null,null,null,null,null,null,null,null,null,null,null,null,null,null,null,null,null,"86","Samorządowe Kolegium Odwoławcze Włocławek","910181922"]
[null,null,null,null,null,null,null,null,null,null,null,null,null,null,null,null,null,null,null,"87","Samorządowe Kolegium Odwoławcze Wrocław","930413995"]
[null,null,null,null,null,null,null,null,null,null,null,null,null,null,null,null,null,null,null,"88","Samorządowe Kolegium Odwoławcze Zamość","950192410"]
[null,null,null,null,null,null,null,null,null,null,null,null,null,null,null,null,null,null,null,"89","Samorządowe Kolegium Odwoławcze Zielona Góra","970383889"]
[null,null,null,null,null,null,null,null,null,null,null,null,null,null,null,null,null,null,null,"90","Sąd Najwyższy","000000224"]
[null,null,null,null,null,null,null,null,null,null,null,null,null,null,null,null,null,null,null,"91","Śląski Urząd Wojewódzki w Katowicach","000514259"]
[null,null,null,null,null,null,null,null,null,null,null,null,null,null,null,null,null,null,null,"92","Świętokrzyski Urząd Wojewódzki","000514265"]
[null,null,null,null,null,null,null,null,null,null,null,null,null,null,null,null,null,null,null,"93","Trybunał Konstytucyjny","001276402"]
[null,null,null,null,null,null,null,null,null,null,null,null,null,null,null,null,null,null,null,"94","Urzadu Ochrony Danych Osobowych","013049097"]
[null,null,null,null,null,null,null,null,null,null,null,null,null,null,null,null,null,null,null,"95","Urząd do Spraw Kombatantów i Osób Represjonowanych","012052708"]
[null,null,null,null,null,null,null,null,null,null,null,null,null,null,null,null,null,null,null,"96","Urząd Komunikacji Elektronicznej","017510794"]
[null,null,null,null,null,null,null,null,null,null,null,null,null,null,null,null,null,null,null,"97","Urząd Ochrony Konkurencji i Konsumentów","006212789"]
[null,null,null,null,null,null,null,null,null,null,null,null,null,null,null,null,null,null,null,"98","Urząd Państwowej Komisji Do Spraw Wyjaśniania Przypadków Czynności Skierowanych Przeciwko Wolności Seksualnej i Obyczajności Wobec Małoletniego Poniżej Lat 15","386651770"]
[null,null,null,null,null,null,null,null,null,null,null,null,null,null,null,null,null,null,null,null,"Urząd Patentowy Rzeczypospolitej Polskiej","000332251"]
[null,null,null,null,null,null,null,null,null,null,null,null,null,null,null,null,null,null,null,null,"Urząd Regulacji Energetyki","012726443"]
[null,null,null,null,null,null,null,null,null,null,null,null,null,null,null,null,null,null,null,null,"Urząd Transportu Kolejowego","015481433"]
[null,null,null,null,null,null,null,null,null,null,null,null,null,null,null,null,null,null,null,null,"Urząd Zamówień Publicznych","010828091"]
[null,null,null,null,null,null,null,null,null,null,null,null,null,null,null,null,null,null,null,null,"Warmińsko-Mazurski Urząd Wojewódzki","000514319"]
[null,null,null,null,null,null,null,null,null,null,null,null,null,null,null,null,null,null,null,null,"Wielkopolski Urząd Wojewódzki","000514331"]
[null,null,null,null,null,null,null,null,null,null,null,null,null,null,null,null,null,null,null,null,"Wyższy Urząd Górniczy","000332245"]
[null,null,null,null,null,null,null,null,null,null,null,null,null,null,null,null,null,null,null,null,"Zachodniopomorski Urząd Wojewódzki","000514354"]

{"sheet":"RBUZA","index":1,"n_rows":2,"n_cols":46,"rows_kept":2,"cut":false,"hidden":true,"merged":[]}
["REGON","CZ_BU","WK","PK","GK","GT","PT","ROK","KWARTAL","DAT_SKW","UWAGI","A1002","A1003","A1004","A1005","A1006","A1007","A1008","A1102","A1103","A1104","A1105","A1106","A1107","A1108","A1202","A1203","A1204","A1205","A1206","A1207","A1208","A1302","A1303","A1304","A1305","A1306","A1307","A1308","A1402","A1403","A1404","A1405","A1406","A1407","A1408"]
[{"$f":"'40-FUNDUSZE CELOWE'!A8","v":""},{"$f":"IF(LEN('40-FUNDUSZE CELOWE'!M11)=1,\"0\"&'40-FUNDUSZE CELOWE'!M11,'40-FUNDUSZE CELOWE'!M11)","v":0},null,null,null,null,{"$f":"'40-FUNDUSZE CELOWE'!L11","v":40},{"$f":"'40-FUNDUSZE CELOWE'!K8","v":0},{"$f":"'40-FUNDUSZE CELOWE'!H8","v":4},null,null,{"$f":"'40-FUNDUSZE CELOWE'!C19","v":0},{"$f":"'40-FUNDUSZE CELOWE'!D19","v":0},{"$f":"'40-FUNDUSZE CELOWE'!E19","v":0},{"$f":"'40-FUNDUSZE CELOWE'!F19","v":0},{"$f":"'40-FUNDUSZE CELOWE'!G19","v":0},{"$f":"'40-FUNDUSZE CELOWE'!H19","v":0},{"$f":"'40-FUNDUSZE CELOWE'!I19","v":0},{"$f":"'40-FUNDUSZE CELOWE'!C20","v":0},{"$f":"'40-FUNDUSZE CELOWE'!D20","v":0},{"$f":"'40-FUNDUSZE CELOWE'!E20","v":0},{"$f":"'40-FUNDUSZE CELOWE'!F20","v":0},{"$f":"'40-FUNDUSZE CELOWE'!G20","v":0},{"$f":"'40-FUNDUSZE CELOWE'!H20","v":0},{"$f":"'40-FUNDUSZE CELOWE'!I20","v":0},{"$f":"'40-FUNDUSZE CELOWE'!C21","v":0},{"$f":"'40-FUNDUSZE CELOWE'!D21","v":0},{"$f":"'40-FUNDUSZE CELOWE'!E21","v":0},{"$f":"'40-FUNDUSZE CELOWE'!F21","v":0},{"$f":"'40-FUNDUSZE CELOWE'!G21","v":0},{"$f":"'40-FUNDUSZE CELOWE'!H21","v":0},{"$f":"'40-FUNDUSZE CELOWE'!I21","v":0},{"$f":"'40-FUNDUSZE CELOWE'!C22","v":0},{"$f":"'40-FUNDUSZE CELOWE'!D22","v":0},{"$f":"'40-FUNDUSZE CELOWE'!E22","v":0},{"$f":"'40-FUNDUSZE CELOWE'!F22","v":0},{"$f":"'40-FUNDUSZE CELOWE'!G22","v":0},{"$f":"'40-FUNDUSZE CELOWE'!H22","v":0},{"$f":"'40-FUNDUSZE CELOWE'!I22","v":0},{"$f":"'40-FUNDUSZE CELOWE'!C23","v":0},{"$f":"'40-FUNDUSZE CELOWE'!D23","v":0},{"$f":"'40-FUNDUSZE CELOWE'!E23","v":0},{"$f":"'40-FUNDUSZE CELOWE'!F23","v":0},{"$f":"'40-FUNDUSZE CELOWE'!G23","v":0},{"$f":"'40-FUNDUSZE CELOWE'!H23","v":0},{"$f":"'40-FUNDUSZE CELOWE'!I23","v":0}]

{"sheet":"RBUZB1","index":2,"n_rows":2,"n_cols":63,"rows_kept":2,"cut":false,"hidden":true,"merged":[]}
["REGON","CZ_BU","WK","PK","GK","GT","PT","ROK","KWARTAL","DAT_SKW","UWAGI","B10102","B10103","B10104","B10105","B10202","B10203","B10204","B10205","B10302","B10303","B10304","B10305","B10402","B10403","B10404","B10405","B10502","B10503","B10504","B10505","B10602","B10603","B10604","B10605","B10702","B10703","B10704","B10705","B10802","B10803","B10804","B10805","B10902","B10903","B10904","B10905","B11002","B11003","B11004","B11005","B11102","B11103","B11104","B11105","B11202","B11203","B11204","B11205","B11302","B11303","B11304","B11305"]
[{"$f":"'40-FUNDUSZE CELOWE'!A8","v":""},{"$f":"IF(LEN('40-FUNDUSZE CELOWE'!M11)=1,\"0\"&'40-FUNDUSZE CELOWE'!M11,'40-FUNDUSZE CELOWE'!M11)","v":0},null,null,null,null,{"$f":"'40-FUNDUSZE CELOWE'!L11","v":40},{"$f":"'40-FUNDUSZE CELOWE'!K8","v":0},{"$f":"'40-FUNDUSZE CELOWE'!H8","v":4},null,null,{"$f":"'40-FUNDUSZE CELOWE'!D33","v":0},{"$f":"'40-FUNDUSZE CELOWE'!E33","v":0},{"$f":"'40-FUNDUSZE CELOWE'!F33","v":0},{"$f":"'40-FUNDUSZE CELOWE'!G33","v":0},{"$f":"'40-FUNDUSZE CELOWE'!D34","v":0},{"$f":"'40-FUNDUSZE CELOWE'!E34","v":0},{"$f":"'40-FUNDUSZE CELOWE'!F34","v":0},{"$f":"'40-FUNDUSZE CELOWE'!G34","v":0},{"$f":"'40-FUNDUSZE CELOWE'!D35","v":0},{"$f":"'40-FUNDUSZE CELOWE'!E35","v":0},{"$f":"'40-FUNDUSZE CELOWE'!F35","v":0},{"$f":"'40-FUNDUSZE CELOWE'!G35","v":0},{"$f":"'40-FUNDUSZE CELOWE'!D36","v":0},{"$f":"'40-FUNDUSZE CELOWE'!E36","v":0},{"$f":"'40-FUNDUSZE CELOWE'!F36","v":0},{"$f":"'40-FUNDUSZE CELOWE'!G36","v":0},{"$f":"'40-FUNDUSZE CELOWE'!D37","v":0},{"$f":"'40-FUNDUSZE CELOWE'!E37","v":0},{"$f":"'40-FUNDUSZE CELOWE'!F37","v":0},{"$f":"'40-FUNDUSZE CELOWE'!G37","v":0},{"$f":"'40-FUNDUSZE CELOWE'!D38","v":0},{"$f":"'40-FUNDUSZE CELOWE'!E38","v":0},{"$f":"'40-FUNDUSZE CELOWE'!F38","v":0},{"$f":"'40-FUNDUSZE CELOWE'!G38","v":0},{"$f":"'40-FUNDUSZE CELOWE'!D39","v":0},{"$f":"'40-FUNDUSZE CELOWE'!E39","v":0},{"$f":"'40-FUNDUSZE CELOWE'!F39","v":0},{"$f":"'40-FUNDUSZE CELOWE'!G39","v":0},{"$f":"'40-FUNDUSZE CELOWE'!D40","v":0},{"$f":"'40-FUNDUSZE CELOWE'!E40","v":0},{"$f":"'40-FUNDUSZE CELOWE'!F40","v":0},{"$f":"'40-FUNDUSZE CELOWE'!G40","v":0},{"$f":"'40-FUNDUSZE CELOWE'!D41","v":0},{"$f":"'40-FUNDUSZE CELOWE'!E41","v":0},{"$f":"'40-FUNDUSZE CELOWE'!F41","v":0},{"$f":"'40-FUNDUSZE CELOWE'!G41","v":0},{"$f":"'40-FUNDUSZE CELOWE'!D42","v":0},{"$f":"'40-FUNDUSZE CELOWE'!E42","v":0},{"$f":"'40-FUNDUSZE CELOWE'!F42","v":0},{"$f":"'40-FUNDUSZE CELOWE'!G42","v":0},{"$f":"'40-FUNDUSZE CELOWE'!D43","v":0},{"$f":"'40-FUNDUSZE CELOWE'!E43","v":0},{"$f":"'40-FUNDUSZE CELOWE'!F43","v":0},{"$f":"'40-FUNDUSZE CELOWE'!G43","v":0},{"$f":"'40-FUNDUSZE CELOWE'!D44","v":0},{"$f":"'40-FUNDUSZE CELOWE'!E44","v":0},{"$f":"'40-FUNDUSZE CELOWE'!F44","v":0},{"$f":"'40-FUNDUSZE CELOWE'!G44","v":0},{"$f":"'40-FUNDUSZE CELOWE'!D45","v":0},{"$f":"'40-FUNDUSZE CELOWE'!E45","v":0},{"$f":"'40-FUNDUSZE CELOWE'!F45","v":0},{"$f":"'40-FUNDUSZE CELOWE'!G45","v":0}]

{"sheet":"RBUZB2","index":3,"n_rows":2,"n_cols":63,"rows_kept":2,"cut":false,"hidden":true,"merged":[]}
["REGON","CZ_BU","WK","PK","GK","GT","PT","ROK","KWARTAL","DAT_SKW","UWAGI","B20102","B20103","B20104","B20105","B20202","B20203","B20204","B20205","B20302","B20303","B20304","B20305","B20402","B20403","B20404","B20405","B20502","B20503","B20504","B20505","B20602","B20603","B20604","B20605","B20702","B20703","B20704","B20705","B20802","B20803","B20804","B20805","B20902","B20903","B20904","B20905","B21002","B21003","B21004","B21005","B21102","B21103","B21104","B21105","B21202","B21203","B21204","B21205","B21302","B21303","B21304","B21305"]
[{"$f":"'40-FUNDUSZE CELOWE'!A8","v":""},{"$f":"IF(LEN('40-FUNDUSZE CELOWE'!M11)=1,\"0\"&'40-FUNDUSZE CELOWE'!M11,'40-FUNDUSZE CELOWE'!M11)","v":0},null,null,null,null,{"$f":"'40-FUNDUSZE CELOWE'!L11","v":40},{"$f":"'40-FUNDUSZE CELOWE'!K8","v":0},{"$f":"'40-FUNDUSZE CELOWE'!H8","v":4},null,null,{"$f":"'40-FUNDUSZE CELOWE'!M33","v":0},{"$f":"'40-FUNDUSZE CELOWE'!N33","v":0},{"$f":"'40-FUNDUSZE CELOWE'!O33","v":0},{"$f":"'40-FUNDUSZE CELOWE'!P33","v":0},{"$f":"'40-FUNDUSZE CELOWE'!M34","v":0},{"$f":"'40-FUNDUSZE CELOWE'!N34","v":0},{"$f":"'40-FUNDUSZE CELOWE'!O34","v":0},{"$f":"'40-FUNDUSZE CELOWE'!P34","v":0},{"$f":"'40-FUNDUSZE CELOWE'!M35","v":0},{"$f":"'40-FUNDUSZE CELOWE'!N35","v":0},{"$f":"'40-FUNDUSZE CELOWE'!O35","v":0},{"$f":"'40-FUNDUSZE CELOWE'!P35","v":0},{"$f":"'40-FUNDUSZE CELOWE'!M36","v":0},{"$f":"'40-FUNDUSZE CELOWE'!N36","v":0},{"$f":"'40-FUNDUSZE CELOWE'!O36","v":0},{"$f":"'40-FUNDUSZE CELOWE'!P36","v":0},{"$f":"'40-FUNDUSZE CELOWE'!M37","v":0},{"$f":"'40-FUNDUSZE CELOWE'!N37","v":0},{"$f":"'40-FUNDUSZE CELOWE'!O37","v":0},{"$f":"'40-FUNDUSZE CELOWE'!P37","v":0},{"$f":"'40-FUNDUSZE CELOWE'!M38","v":0},{"$f":"'40-FUNDUSZE CELOWE'!N38","v":0},{"$f":"'40-FUNDUSZE CELOWE'!O38","v":0},{"$f":"'40-FUNDUSZE CELOWE'!P38","v":0},{"$f":"'40-FUNDUSZE CELOWE'!M39","v":0},{"$f":"'40-FUNDUSZE CELOWE'!N39","v":0},{"$f":"'40-FUNDUSZE CELOWE'!O39","v":0},{"$f":"'40-FUNDUSZE CELOWE'!P39","v":0},{"$f":"'40-FUNDUSZE CELOWE'!M40","v":0},{"$f":"'40-FUNDUSZE CELOWE'!N40","v":0},{"$f":"'40-FUNDUSZE CELOWE'!O40","v":0},{"$f":"'40-FUNDUSZE CELOWE'!P40","v":0},{"$f":"'40-FUNDUSZE CELOWE'!M41","v":0},{"$f":"'40-FUNDUSZE CELOWE'!N41","v":0},{"$f":"'40-FUNDUSZE CELOWE'!O41","v":0},{"$f":"'40-FUNDUSZE CELOWE'!P41","v":0},{"$f":"'40-FUNDUSZE CELOWE'!M42","v":0},{"$f":"'40-FUNDUSZE CELOWE'!N42","v":0},{"$f":"'40-FUNDUSZE CELOWE'!O42","v":0},{"$f":"'40-FUNDUSZE CELOWE'!P42","v":0},{"$f":"'40-FUNDUSZE CELOWE'!M43","v":0},{"$f":"'40-FUNDUSZE CELOWE'!N43","v":0},{"$f":"'40-FUNDUSZE CELOWE'!O43","v":0},{"$f":"'40-FUNDUSZE CELOWE'!P43","v":0},{"$f":"'40-FUNDUSZE CELOWE'!M44","v":0},{"$f":"'40-FUNDUSZE CELOWE'!N44","v":0},{"$f":"'40-FUNDUSZE CELOWE'!O44","v":0},{"$f":"'40-FUNDUSZE CELOWE'!P44","v":0},{"$f":"'40-FUNDUSZE CELOWE'!M45","v":0},{"$f":"'40-FUNDUSZE CELOWE'!N45","v":0},{"$f":"'40-FUNDUSZE CELOWE'!O45","v":0},{"$f":"'40-FUNDUSZE CELOWE'!P45","v":0}]

{"sheet":"RBUZB3","index":4,"n_rows":2,"n_cols":63,"rows_kept":2,"cut":false,"hidden":true,"merged":[]}
["REGON","CZ_BU","WK","PK","GK","GT","PT","ROK","KWARTAL","DAT_SKW","UWAGI","B30102","B30103","B30104","B30105","B30202","B30203","B30204","B30205","B30302","B30303","B30304","B30305","B30402","B30403","B30404","B30405","B30502","B30503","B30504","B30505","B30602","B30603","B30604","B30605","B30702","B30703","B30704","B30705","B30802","B30803","B30804","B30805","B30902","B30903","B30904","B30905","B31002","B31003","B31004","B31005","B31102","B31103","B31104","B31105","B31202","B31203","B31204","B31205","B31302","B31303","B31304","B31305"]
[{"$f":"'40-FUNDUSZE CELOWE'!A8","v":""},{"$f":"IF(LEN('40-FUNDUSZE CELOWE'!M11)=1,\"0\"&'40-FUNDUSZE CELOWE'!M11,'40-FUNDUSZE CELOWE'!M11)","v":0},null,null,null,null,{"$f":"'40-FUNDUSZE CELOWE'!L11","v":40},{"$f":"'40-FUNDUSZE CELOWE'!K8","v":0},{"$f":"'40-FUNDUSZE CELOWE'!H8","v":4},null,null,{"$f":"'40-FUNDUSZE CELOWE'!D53","v":0},{"$f":"'40-FUNDUSZE CELOWE'!E53","v":0},{"$f":"'40-FUNDUSZE CELOWE'!F53","v":0},{"$f":"'40-FUNDUSZE CELOWE'!G53","v":0},{"$f":"'40-FUNDUSZE CELOWE'!D54","v":0},{"$f":"'40-FUNDUSZE CELOWE'!E54","v":0},{"$f":"'40-FUNDUSZE CELOWE'!F54","v":0},{"$f":"'40-FUNDUSZE CELOWE'!G54","v":0},{"$f":"'40-FUNDUSZE CELOWE'!D55","v":0},{"$f":"'40-FUNDUSZE CELOWE'!E55","v":0},{"$f":"'40-FUNDUSZE CELOWE'!F55","v":0},{"$f":"'40-FUNDUSZE CELOWE'!G55","v":0},{"$f":"'40-FUNDUSZE CELOWE'!D56","v":0},{"$f":"'40-FUNDUSZE CELOWE'!E56","v":0},{"$f":"'40-FUNDUSZE CELOWE'!F56","v":0},{"$f":"'40-FUNDUSZE CELOWE'!G56","v":0},{"$f":"'40-FUNDUSZE CELOWE'!D57","v":0},{"$f":"'40-FUNDUSZE CELOWE'!E57","v":0},{"$f":"'40-FUNDUSZE CELOWE'!F57","v":0},{"$f":"'40-FUNDUSZE CELOWE'!G57","v":0},{"$f":"'40-FUNDUSZE CELOWE'!D58","v":0},{"$f":"'40-FUNDUSZE CELOWE'!E58","v":0},{"$f":"'40-FUNDUSZE CELOWE'!F58","v":0},{"$f":"'40-FUNDUSZE CELOWE'!G58","v":0},{"$f":"'40-FUNDUSZE CELOWE'!D59","v":0},{"$f":"'40-FUNDUSZE CELOWE'!E59","v":0},{"$f":"'40-FUNDUSZE CELOWE'!F59","v":0},{"$f":"'40-FUNDUSZE CELOWE'!G59","v":0},{"$f":"'40-FUNDUSZE CELOWE'!D60","v":0},{"$f":"'40-FUNDUSZE CELOWE'!E60","v":0},{"$f":"'40-FUNDUSZE CELOWE'!F60","v":0},{"$f":"'40-FUNDUSZE CELOWE'!G60","v":0},{"$f":"'40-FUNDUSZE CELOWE'!D61","v":0},{"$f":"'40-FUNDUSZE CELOWE'!E61","v":0},{"$f":"'40-FUNDUSZE CELOWE'!F61","v":0},{"$f":"'40-FUNDUSZE CELOWE'!G61","v":0},{"$f":"'40-FUNDUSZE CELOWE'!D62","v":0},{"$f":"'40-FUNDUSZE CELOWE'!E62","v":0},{"$f":"'40-FUNDUSZE CELOWE'!F62","v":0},{"$f":"'40-FUNDUSZE CELOWE'!G62","v":0},{"$f":"'40-FUNDUSZE CELOWE'!D63","v":0},{"$f":"'40-FUNDUSZE CELOWE'!E63","v":0},{"$f":"'40-FUNDUSZE CELOWE'!F63","v":0},{"$f":"'40-FUNDUSZE CELOWE'!G63","v":0},{"$f":"'40-FUNDUSZE CELOWE'!D64","v":0},{"$f":"'40-FUNDUSZE CELOWE'!E64","v":0},{"$f":"'40-FUNDUSZE CELOWE'!F64","v":0},{"$f":"'40-FUNDUSZE CELOWE'!G64","v":0},{"$f":"'40-FUNDUSZE CELOWE'!D65","v":0},{"$f":"'40-FUNDUSZE CELOWE'!E65","v":0},{"$f":"'40-FUNDUSZE CELOWE'!F65","v":0},{"$f":"'40-FUNDUSZE CELOWE'!G65","v":0}]

{"sheet":"RBUZB4","index":5,"n_rows":2,"n_cols":63,"rows_kept":2,"cut":false,"hidden":true,"merged":[]}
["REGON","CZ_BU","WK","PK","GK","GT","PT","ROK","KWARTAL","DAT_SKW","UWAGI","B40102","B40103","B40104","B40105","B40202","B40203","B40204","B40205","B40302","B40303","B40304","B40305","B40402","B40403","B40404","B40405","B40502","B40503","B40504","B40505","B40602","B40603","B40604","B40605","B40702","B40703","B40704","B40705","B40802","B40803","B40804","B40805","B40902","B40903","B40904","B40905","B41002","B41003","B41004","B41005","B41102","B41103","B41104","B41105","B41202","B41203","B41204","B41205","B41302","B41303","B41304","B41305"]
[{"$f":"'40-FUNDUSZE CELOWE'!A8","v":""},{"$f":"IF(LEN('40-FUNDUSZE CELOWE'!M11)=1,\"0\"&'40-FUNDUSZE CELOWE'!M11,'40-FUNDUSZE CELOWE'!M11)","v":0},null,null,null,null,{"$f":"'40-FUNDUSZE CELOWE'!L11","v":40},{"$f":"'40-FUNDUSZE CELOWE'!K8","v":0},{"$f":"'40-FUNDUSZE CELOWE'!H8","v":4},null,null,{"$f":"'40-FUNDUSZE CELOWE'!M53","v":0},{"$f":"'40-FUNDUSZE CELOWE'!N53","v":0},{"$f":"'40-FUNDUSZE CELOWE'!O53","v":0},{"$f":"'40-FUNDUSZE CELOWE'!P53","v":0},{"$f":"'40-FUNDUSZE CELOWE'!M54","v":0},{"$f":"'40-FUNDUSZE CELOWE'!N54","v":0},{"$f":"'40-FUNDUSZE CELOWE'!O54","v":0},{"$f":"'40-FUNDUSZE CELOWE'!P54","v":0},{"$f":"'40-FUNDUSZE CELOWE'!M55","v":0},{"$f":"'40-FUNDUSZE CELOWE'!N55","v":0},{"$f":"'40-FUNDUSZE CELOWE'!O55","v":0},{"$f":"'40-FUNDUSZE CELOWE'!P55","v":0},{"$f":"'40-FUNDUSZE CELOWE'!M56","v":0},{"$f":"'40-FUNDUSZE CELOWE'!N56","v":0},{"$f":"'40-FUNDUSZE CELOWE'!O56","v":0},{"$f":"'40-FUNDUSZE CELOWE'!P56","v":0},{"$f":"'40-FUNDUSZE CELOWE'!M57","v":0},{"$f":"'40-FUNDUSZE CELOWE'!N57","v":0},{"$f":"'40-FUNDUSZE CELOWE'!O57","v":0},{"$f":"'40-FUNDUSZE CELOWE'!P57","v":0},{"$f":"'40-FUNDUSZE CELOWE'!M58","v":0},{"$f":"'40-FUNDUSZE CELOWE'!N58","v":0},{"$f":"'40-FUNDUSZE CELOWE'!O58","v":0},{"$f":"'40-FUNDUSZE CELOWE'!P58","v":0},{"$f":"'40-FUNDUSZE CELOWE'!M59","v":0},{"$f":"'40-FUNDUSZE CELOWE'!N59","v":0},{"$f":"'40-FUNDUSZE CELOWE'!O59","v":0},{"$f":"'40-FUNDUSZE CELOWE'!P59","v":0},{"$f":"'40-FUNDUSZE CELOWE'!M60","v":0},{"$f":"'40-FUNDUSZE CELOWE'!N60","v":0},{"$f":"'40-FUNDUSZE CELOWE'!O60","v":0},{"$f":"'40-FUNDUSZE CELOWE'!P60","v":0},{"$f":"'40-FUNDUSZE CELOWE'!M61","v":0},{"$f":"'40-FUNDUSZE CELOWE'!N61","v":0},{"$f":"'40-FUNDUSZE CELOWE'!O61","v":0},{"$f":"'40-FUNDUSZE CELOWE'!P61","v":0},{"$f":"'40-FUNDUSZE CELOWE'!M62","v":0},{"$f":"'40-FUNDUSZE CELOWE'!N62","v":0},{"$f":"'40-FUNDUSZE CELOWE'!O62","v":0},{"$f":"'40-FUNDUSZE CELOWE'!P62","v":0},{"$f":"'40-FUNDUSZE CELOWE'!M63","v":0},{"$f":"'40-FUNDUSZE CELOWE'!N63","v":0},{"$f":"'40-FUNDUSZE CELOWE'!O63","v":0},{"$f":"'40-FUNDUSZE CELOWE'!P63","v":0},{"$f":"'40-FUNDUSZE CELOWE'!M64","v":0},{"$f":"'40-FUNDUSZE CELOWE'!N64","v":0},{"$f":"'40-FUNDUSZE CELOWE'!O64","v":0},{"$f":"'40-FUNDUSZE CELOWE'!P64","v":0},{"$f":"'40-FUNDUSZE CELOWE'!M65","v":0},{"$f":"'40-FUNDUSZE CELOWE'!N65","v":0},{"$f":"'40-FUNDUSZE CELOWE'!O65","v":0},{"$f":"'40-FUNDUSZE CELOWE'!P65","v":0}]